[Event "Titled Tuesday Blitz July 4 Early 2023"]
[White "Filgueira, Hernan"]
[Black "Terry, Renato"]
[WhiteFideId "101770"]
[BlackFideId "3803457"]
[WhiteElo "2604"]
[BlackElo "2990"]
[Result "0-1"]
[Round "2"]
[TimeControl "180+2"]
[Date "2023.07.04"]
[WhiteClock "0:00:00"]
[BlackClock "0:00:23"]
[Board "17"]

1. e4 {[%clk 0:02:58]}  e6 {[%clk 0:02:56]} 2. d4 {[%clk 0:02:55]}  d5 {[%clk 0:02:56]} 3. Nd2 {[%clk 0:02:56]}  Be7 {[%clk 0:02:56]} 4. Ngf3 {[%clk 0:02:54]}  Nf6 {[%clk 0:02:56]} 5. e5 {[%clk 0:02:47]}  Nfd7 {[%clk 0:02:56]} 6. c3 {[%clk 0:02:46]}  c5 {[%clk 0:02:56]} 7. Bd3 {[%clk 0:02:46]}  Nc6 {[%clk 0:02:57]} 8. O-O {[%clk 0:02:45]}  g5 {[%clk 0:02:58]} 9. h3 {[%clk 0:02:44]}  h5 {[%clk 0:02:57]} 10. dxc5 {[%clk 0:02:28]}  g4 {[%clk 0:02:57]} 11. hxg4 {[%clk 0:02:27]}  hxg4 {[%clk 0:02:57]} 12. Nd4 {[%clk 0:02:26]}  Ndxe5 {[%clk 0:02:57]} 13. Bb5 {[%clk 0:02:24]}  Bxc5 {[%clk 0:02:56]} 14. g3 {[%clk 0:01:54]}  Bd7 {[%clk 0:02:55]} 15. Bxc6 {[%clk 0:01:50]}  bxc6 {[%clk 0:02:52]} 16. Qe2 {[%clk 0:01:50]}  Qf6 {[%clk 0:02:51]} 17. f4 {[%clk 0:01:46]}  gxf3 {[%clk 0:02:26]} 18. Nxf3 {[%clk 0:01:44]}  Nxf3+ {[%clk 0:02:22]} 19. Rxf3 {[%clk 0:01:41]}  Qg7 {[%clk 0:02:10]} 20. Bf4 {[%clk 0:01:29]}  f6 {[%clk 0:02:08]} 21. b4 {[%clk 0:01:16]}  Bb6 {[%clk 0:02:08]} 22. Re3 {[%clk 0:00:20]}  e5 {[%clk 0:01:46]} 23. Rf1 {[%clk 0:00:18]}  O-O-O {[%clk 0:01:31]} 24. Rxe5 {[%clk 0:00:16]}  Kb7 {[%clk 0:00:52]} 25. Re7 {[%clk 0:00:14]}  Qg6 {[%clk 0:00:53]} 26. Qe6 {[%clk 0:00:08]}  Bxd4+ {[%clk 0:00:38]} 27. cxd4 {[%clk 0:00:07]}  Rh7 {[%clk 0:00:38]} 28. b5 {[%clk 0:00:06]}  Ka8 {[%clk 0:00:23]} 29. Qd6 {[%clk 0:00:01]}  Rxe7 {[%clk 0:00:22]} 30. Qxe7 {[%clk 0:00:00]}  Qe8 {[%clk 0:00:23]} 0-1


[Site "https://www.chess.com"]

[Event "Titled Tuesday Blitz July 4 Early 2023"]
[White "ATM622"]
[Black "Kollars, Dmitrij"]
[BlackFideId "12909572"]
[WhiteElo "2592"]
[BlackElo "2953"]
[Result "0-1"]
[Round "2"]
[TimeControl "180+2"]
[Date "2023.07.04"]
[WhiteClock "0:00:48"]
[BlackClock "0:01:12"]
[Board "21"]

1. d4 {[%clk 0:03:00]}  Nf6 {[%clk 0:02:59]} 2. c4 {[%clk 0:02:59]}  e6 {[%clk 0:02:59]} 3. g3 {[%clk 0:03:00]}  c5 {[%clk 0:02:59]} 4. d5 {[%clk 0:02:59]}  exd5 {[%clk 0:03:00]} 5. cxd5 {[%clk 0:03:00]}  d6 {[%clk 0:03:01]} 6. Bg2 {[%clk 0:03:00]}  g6 {[%clk 0:03:02]} 7. Nf3 {[%clk 0:03:00]}  Bg7 {[%clk 0:03:02]} 8. O-O {[%clk 0:03:01]}  O-O {[%clk 0:03:03]} 9. Nc3 {[%clk 0:03:01]}  Re8 {[%clk 0:03:03]} 10. Nd2 {[%clk 0:03:01]}  Nbd7 {[%clk 0:02:57]} 11. Nc4 {[%clk 0:03:00]}  Ne5 {[%clk 0:02:56]} 12. Nxe5 {[%clk 0:03:00]}  Rxe5 {[%clk 0:02:57]} 13. e4 {[%clk 0:03:00]}  Re8 {[%clk 0:02:55]} 14. Re1 {[%clk 0:03:00]}  Ng4 {[%clk 0:02:53]} 15. h3 {[%clk 0:02:58]}  Ne5 {[%clk 0:02:53]} 16. f4 {[%clk 0:02:51]}  Nc4 {[%clk 0:02:53]} 17. Bf1 {[%clk 0:02:44]}  Na5 {[%clk 0:02:51]} 18. Be3 {[%clk 0:02:37]}  a6 {[%clk 0:02:49]} 19. e5 {[%clk 0:02:25]}  dxe5 {[%clk 0:02:46]} 20. Bxc5 {[%clk 0:02:25]}  exf4 {[%clk 0:02:40]} 21. gxf4 {[%clk 0:02:02]}  Rxe1 {[%clk 0:02:30]} 22. Qxe1 {[%clk 0:02:02]}  Bf5 {[%clk 0:02:31]} 23. Rd1 {[%clk 0:01:54]}  Rc8 {[%clk 0:02:31]} 24. Qf2 {[%clk 0:01:54]}  Qd7 {[%clk 0:02:23]} 25. h4 {[%clk 0:01:44]}  b5 {[%clk 0:02:05]} 26. Re1 {[%clk 0:01:42]}  Bxc3 {[%clk 0:01:59]} 27. bxc3 {[%clk 0:01:36]}  Qxd5 {[%clk 0:01:59]} 28. Bd4 {[%clk 0:01:34]}  Be4 {[%clk 0:01:46]} 29. Bh3 {[%clk 0:01:31]}  f5 {[%clk 0:01:46]} 30. h5 {[%clk 0:01:30]}  Nc6 {[%clk 0:01:45]} 31. Bf6 {[%clk 0:01:23]}  Kf7 {[%clk 0:01:15]} 32. Bh4 {[%clk 0:01:01]}  gxh5 {[%clk 0:01:14]} 33. Kh2 {[%clk 0:01:01]}  Rg8 {[%clk 0:01:14]} 34. Qe2 {[%clk 0:00:55]}  Rg6 {[%clk 0:01:13]} 35. Qxh5 {[%clk 0:00:51]}  Qd2+ {[%clk 0:01:12]} 36. Re2 {[%clk 0:00:48]}  Qxf4+ {[%clk 0:01:12]} 0-1


[Site "https://www.chess.com"]

[Event "Titled Tuesday Blitz July 4 Early 2023"]
[White "Domingo Nunez, Ruben"]
[Black "Matlakov, Maxim"]
[WhiteFideId "22245570"]
[BlackFideId "4168003"]
[WhiteElo "2590"]
[BlackElo "2939"]
[Result "1-0"]
[Round "2"]
[TimeControl "180+2"]
[Date "2023.07.04"]
[WhiteClock "0:00:37"]
[BlackClock "0:01:34"]
[Board "22"]

1. Nf3 {[%clk 0:02:52]}  c5 {[%clk 0:02:59]} 2. c4 {[%clk 0:02:51]}  Nc6 {[%clk 0:03:00]} 3. Nc3 {[%clk 0:02:52]}  g6 {[%clk 0:03:00]} 4. g3 {[%clk 0:02:52]}  Bg7 {[%clk 0:03:00]} 5. Bg2 {[%clk 0:02:53]}  d6 {[%clk 0:03:00]} 6. O-O {[%clk 0:02:53]}  Bf5 {[%clk 0:03:00]} 7. a3 {[%clk 0:02:22]}  Qd7 {[%clk 0:02:59]} 8. b4 {[%clk 0:02:22]}  Bh3 {[%clk 0:02:56]} 9. Bb2 {[%clk 0:02:03]}  Bxg2 {[%clk 0:02:56]} 10. Kxg2 {[%clk 0:02:04]}  cxb4 {[%clk 0:02:56]} 11. axb4 {[%clk 0:02:05]}  Nxb4 {[%clk 0:02:55]} 12. d4 {[%clk 0:02:03]}  Nc6 {[%clk 0:02:54]} 13. d5 {[%clk 0:01:49]}  Ne5 {[%clk 0:02:54]} 14. Nxe5 {[%clk 0:01:49]}  Bxe5 {[%clk 0:02:54]} 15. Qb3 {[%clk 0:01:50]}  Nf6 {[%clk 0:02:51]} 16. f4 {[%clk 0:01:41]}  Bd4 {[%clk 0:02:51]} 17. Rfd1 {[%clk 0:01:36]}  Bxc3 {[%clk 0:02:43]} 18. Qxc3 {[%clk 0:01:32]}  O-O {[%clk 0:02:43]} 19. e4 {[%clk 0:01:32]}  Rac8 {[%clk 0:02:32]} 20. e5 {[%clk 0:01:32]}  Ne4 {[%clk 0:02:18]} 21. Qd4 {[%clk 0:01:29]}  Qf5 {[%clk 0:02:15]} 22. exd6 {[%clk 0:01:27]}  f6 {[%clk 0:02:06]} 23. dxe7 {[%clk 0:01:24]}  Rfe8 {[%clk 0:02:07]} 24. d6 {[%clk 0:01:23]}  Nxd6 {[%clk 0:01:58]} 25. Qxd6 {[%clk 0:01:22]}  Rxc4 {[%clk 0:01:59]} 26. Qxf6 {[%clk 0:01:12]}  Rc2+ {[%clk 0:01:59]} 27. Kg1 {[%clk 0:01:13]}  Qxf6 {[%clk 0:01:54]} 28. Bxf6 {[%clk 0:01:13]}  Kf7 {[%clk 0:01:55]} 29. Rd8 {[%clk 0:01:12]}  Rc8 {[%clk 0:01:50]} 30. Bh4 {[%clk 0:00:54]}  a6 {[%clk 0:01:49]} 31. Rb1 {[%clk 0:00:46]}  b5 {[%clk 0:01:49]} 32. Ra1 {[%clk 0:00:46]}  Ra8 {[%clk 0:01:48]} 33. Rxe8 {[%clk 0:00:42]}  Kxe8 {[%clk 0:01:47]} 34. Rd1 {[%clk 0:00:42]}  Kf7 {[%clk 0:01:43]} 35. Rd8 {[%clk 0:00:42]}  Ke6 {[%clk 0:01:35]} 36. e8=Q+ {[%clk 0:00:41]}  Kf5 {[%clk 0:01:35]} 37. Qd7+ {[%clk 0:00:39]}  Ke4 {[%clk 0:01:35]} 38. Re8+ {[%clk 0:00:38]}  Kf3 {[%clk 0:01:34]} 39. Qd1# {[%clk 0:00:37]} 1-0


[Site "https://www.chess.com"]

[Event "Titled Tuesday Blitz July 4 Early 2023"]
[White "Ovchinnikov, Vsevolod"]
[Black "Chigaev, Maksim"]
[WhiteFideId "24176842"]
[BlackFideId "4108116"]
[WhiteElo "2589"]
[BlackElo "2929"]
[Result "0-1"]
[Round "2"]
[TimeControl "180+2"]
[Date "2023.07.04"]
[WhiteClock "0:00:28"]
[BlackClock "0:00:33"]
[Board "23"]

1. Nf3 {[%clk 0:03:00]}  Nf6 {[%clk 0:02:59]} 2. c4 {[%clk 0:03:01]}  b6 {[%clk 0:02:57]} 3. g3 {[%clk 0:03:02]}  Bb7 {[%clk 0:02:57]} 4. Bg2 {[%clk 0:03:03]}  g6 {[%clk 0:02:58]} 5. O-O {[%clk 0:03:03]}  Bg7 {[%clk 0:02:58]} 6. Nc3 {[%clk 0:03:04]}  O-O {[%clk 0:02:59]} 7. d4 {[%clk 0:03:03]}  Ne4 {[%clk 0:02:45]} 8. Bd2 {[%clk 0:02:53]}  e6 {[%clk 0:02:45]} 9. Nxe4 {[%clk 0:02:51]}  Bxe4 {[%clk 0:02:46]} 10. Bc3 {[%clk 0:02:51]}  d5 {[%clk 0:02:42]} 11. Qb3 {[%clk 0:02:44]}  a5 {[%clk 0:02:40]} 12. cxd5 {[%clk 0:02:40]}  exd5 {[%clk 0:02:36]} 13. Rac1 {[%clk 0:02:33]}  Re8 {[%clk 0:02:35]} 14. e3 {[%clk 0:02:28]}  Nd7 {[%clk 0:02:30]} 15. Nd2 {[%clk 0:02:25]}  Bxg2 {[%clk 0:02:30]} 16. Kxg2 {[%clk 0:02:26]}  Nf6 {[%clk 0:02:30]} 17. Qb5 {[%clk 0:02:24]}  h5 {[%clk 0:02:21]} 18. h3 {[%clk 0:02:21]}  Re6 {[%clk 0:02:15]} 19. b3 {[%clk 0:02:10]}  c6 {[%clk 0:02:07]} 20. Qe2 {[%clk 0:02:09]}  Qd7 {[%clk 0:02:07]} 21. Rc2 {[%clk 0:02:08]}  Rae8 {[%clk 0:01:56]} 22. Bb2 {[%clk 0:02:03]}  Ne4 {[%clk 0:01:48]} 23. Nxe4 {[%clk 0:02:03]}  Rxe4 {[%clk 0:01:49]} 24. Qf3 {[%clk 0:01:59]}  R8e6 {[%clk 0:01:46]} 25. Rfc1 {[%clk 0:01:52]}  f5 {[%clk 0:01:28]} 26. h4 {[%clk 0:01:40]}  Bh6 {[%clk 0:01:28]} 27. Rc3 {[%clk 0:01:35]}  Bg7 {[%clk 0:01:26]} 28. R3c2 {[%clk 0:01:33]}  Bf6 {[%clk 0:01:24]} 29. Rh1 {[%clk 0:01:21]}  Kf7 {[%clk 0:01:19]} 30. Rd2 {[%clk 0:01:19]}  Ke8 {[%clk 0:01:19]} 31. Qe2 {[%clk 0:01:14]}  f4 {[%clk 0:01:12]} 32. gxf4 {[%clk 0:01:09]}  Rxf4 {[%clk 0:01:13]} 33. exf4 {[%clk 0:01:02]}  Rxe2 {[%clk 0:01:12]} 34. Rxe2+ {[%clk 0:01:03]}  Kf7 {[%clk 0:01:13]} 35. f3 {[%clk 0:01:03]}  Qf5 {[%clk 0:01:13]} 36. Kg3 {[%clk 0:01:03]}  Be7 {[%clk 0:01:05]} 37. Re5 {[%clk 0:01:01]}  Qc2 {[%clk 0:01:05]} 38. Rh2 {[%clk 0:01:01]}  Qb1 {[%clk 0:00:48]} 39. Bc3 {[%clk 0:00:48]}  Bd6 {[%clk 0:00:47]} 40. Re1 {[%clk 0:00:44]}  Qd3 {[%clk 0:00:42]} 41. Rc1 {[%clk 0:00:33]}  Qe3 {[%clk 0:00:34]} 42. Bd2 {[%clk 0:00:28]}  Bxf4+ {[%clk 0:00:33]} 0-1


[Site "https://www.chess.com"]

[Event "Titled Tuesday Blitz July 4 Early 2023"]
[White "Terletsky, Oleg"]
[Black "Durarbayli, Vasif"]
[WhiteFideId "14116774"]
[BlackFideId "13402935"]
[WhiteElo "2582"]
[BlackElo "2914"]
[Result "0-1"]
[Round "2"]
[TimeControl "180+2"]
[Date "2023.07.04"]
[WhiteClock "0:00:02"]
[BlackClock "0:00:09"]
[Board "28"]

1. e4 {[%clk 0:03:00]}  c5 {[%clk 0:02:57]} 2. Nf3 {[%clk 0:02:59]}  d6 {[%clk 0:02:57]} 3. d4 {[%clk 0:02:59]}  cxd4 {[%clk 0:02:58]} 4. Nxd4 {[%clk 0:03:00]}  Nf6 {[%clk 0:02:58]} 5. Nc3 {[%clk 0:03:00]}  Nc6 {[%clk 0:02:58]} 6. Bc4 {[%clk 0:03:00]}  e6 {[%clk 0:02:57]} 7. Be3 {[%clk 0:02:59]}  a6 {[%clk 0:02:57]} 8. Qe2 {[%clk 0:02:59]}  Qc7 {[%clk 0:02:57]} 9. O-O-O {[%clk 0:02:59]}  Na5 {[%clk 0:02:58]} 10. Bb3 {[%clk 0:02:57]}  b5 {[%clk 0:02:57]} 11. Bg5 {[%clk 0:02:31]}  Be7 {[%clk 0:02:43]} 12. f4 {[%clk 0:02:14]}  Nxb3+ {[%clk 0:01:59]} 13. axb3 {[%clk 0:02:13]}  b4 {[%clk 0:01:56]} 14. Na4 {[%clk 0:02:04]}  Bb7 {[%clk 0:01:44]} 15. e5 {[%clk 0:01:57]}  dxe5 {[%clk 0:01:44]} 16. fxe5 {[%clk 0:01:56]}  Nd5 {[%clk 0:01:44]} 17. Bxe7 {[%clk 0:01:53]}  Qxe7 {[%clk 0:01:45]} 18. h4 {[%clk 0:01:03]}  Rc8 {[%clk 0:01:35]} 19. g3 {[%clk 0:00:53]}  O-O {[%clk 0:01:33]} 20. Rhf1 {[%clk 0:00:52]}  Bc6 {[%clk 0:01:18]} 21. Nxc6 {[%clk 0:00:48]}  Rxc6 {[%clk 0:01:19]} 22. Kb1 {[%clk 0:00:43]}  Rfc8 {[%clk 0:01:17]} 23. Rd2 {[%clk 0:00:43]}  h6 {[%clk 0:01:01]} 24. Rfd1 {[%clk 0:00:43]}  Qc7 {[%clk 0:00:51]} 25. Qe4 {[%clk 0:00:36]}  Qe7 {[%clk 0:00:41]} 26. Rc1 {[%clk 0:00:24]}  a5 {[%clk 0:00:32]} 27. Rcd1 {[%clk 0:00:21]}  Qa7 {[%clk 0:00:29]} 28. Rxd5 {[%clk 0:00:12]}  exd5 {[%clk 0:00:28]} 29. Rxd5 {[%clk 0:00:13]}  Rxc2 {[%clk 0:00:19]} 30. e6 {[%clk 0:00:13]}  fxe6 {[%clk 0:00:10]} 31. Qxe6+ {[%clk 0:00:12]}  Qf7 {[%clk 0:00:10]} 32. Qxf7+ {[%clk 0:00:10]}  Kxf7 {[%clk 0:00:11]} 33. Rxa5 {[%clk 0:00:10]}  Rg2 {[%clk 0:00:10]} 34. Nc5 {[%clk 0:00:08]}  Rxg3 {[%clk 0:00:09]} 35. Rb5 {[%clk 0:00:08]}  Rg4 {[%clk 0:00:09]} 36. Nd3 {[%clk 0:00:06]}  Rg1+ {[%clk 0:00:08]} 37. Ka2 {[%clk 0:00:02]}  Ra8+ {[%clk 0:00:09]} 0-1


[Site "https://www.chess.com"]

[Event "Titled Tuesday Blitz July 4 Early 2023"]
[White "Aravindh, Chithambaram VR."]
[Black "Pasti, Aron"]
[WhiteFideId "5072786"]
[BlackFideId "785857"]
[WhiteElo "2907"]
[BlackElo "2579"]
[Result "1-0"]
[Round "2"]
[TimeControl "180+2"]
[Date "2023.07.04"]
[WhiteClock "0:01:50"]
[BlackClock "0:01:28"]
[Board "31"]

1. d4 {[%clk 0:03:00]}  Nf6 {[%clk 0:02:58]} 2. Nf3 {[%clk 0:03:00]}  d5 {[%clk 0:02:58]} 3. e3 {[%clk 0:02:59]}  e6 {[%clk 0:02:52]} 4. Bd3 {[%clk 0:02:59]}  Be7 {[%clk 0:02:50]} 5. O-O {[%clk 0:02:58]}  O-O {[%clk 0:02:51]} 6. b3 {[%clk 0:02:59]}  b6 {[%clk 0:02:49]} 7. Bb2 {[%clk 0:02:59]}  Bb7 {[%clk 0:02:50]} 8. Nbd2 {[%clk 0:03:00]}  c5 {[%clk 0:02:49]} 9. Ne5 {[%clk 0:02:58]}  Ba6 {[%clk 0:02:38]} 10. c4 {[%clk 0:02:25]}  dxc4 {[%clk 0:02:20]} 11. Qf3 {[%clk 0:02:00]}  Nbd7 {[%clk 0:01:43]} 12. Nc6 {[%clk 0:01:55]}  Qe8 {[%clk 0:01:43]} 13. Bxc4 {[%clk 0:01:48]}  Bxc4 {[%clk 0:01:39]} 14. Nxc4 {[%clk 0:01:49]}  cxd4 {[%clk 0:01:37]} 15. Nxe7+ {[%clk 0:01:49]}  Qxe7 {[%clk 0:01:36]} 16. Ba3 {[%clk 0:01:50]}  Nc5 {[%clk 0:01:28]} 17. exd4 {[%clk 0:01:50]} 1-0


[Site "https://www.chess.com"]

[Event "Titled Tuesday Blitz July 4 Early 2023"]
[White "Krstulovic, Alex"]
[Black "Zhigalko, Sergei"]
[WhiteFideId "760056"]
[BlackFideId "13502956"]
[WhiteElo "2576"]
[BlackElo "2902"]
[Result "1/2-1/2"]
[Round "2"]
[TimeControl "180+2"]
[Date "2023.07.04"]
[WhiteClock "0:00:51"]
[BlackClock "0:00:31"]
[Board "32"]

1. d4 {[%clk 0:03:00]}  Nf6 {[%clk 0:02:59]} 2. Nf3 {[%clk 0:03:00]}  e6 {[%clk 0:02:59]} 3. Bf4 {[%clk 0:03:00]}  b6 {[%clk 0:02:56]} 4. e3 {[%clk 0:03:01]}  Bb7 {[%clk 0:02:57]} 5. c4 {[%clk 0:03:02]}  Bb4+ {[%clk 0:02:53]} 6. Nfd2 {[%clk 0:03:01]}  O-O {[%clk 0:02:51]} 7. a3 {[%clk 0:02:58]}  Bd6 {[%clk 0:02:42]} 8. Bg3 {[%clk 0:02:52]}  Bxg3 {[%clk 0:02:29]} 9. hxg3 {[%clk 0:02:52]}  d6 {[%clk 0:02:30]} 10. Nc3 {[%clk 0:02:52]}  Nbd7 {[%clk 0:02:30]} 11. g4 {[%clk 0:02:37]}  h6 {[%clk 0:02:22]} 12. Be2 {[%clk 0:02:07]}  Bxg2 {[%clk 0:02:11]} 13. Rh2 {[%clk 0:02:07]}  Bb7 {[%clk 0:02:11]} 14. Bf3 {[%clk 0:02:08]}  Bxf3 {[%clk 0:02:01]} 15. Qxf3 {[%clk 0:02:09]}  Nh7 {[%clk 0:02:01]} 16. O-O-O {[%clk 0:02:02]}  f5 {[%clk 0:02:01]} 17. Rg1 {[%clk 0:01:59]}  f4 {[%clk 0:01:47]} 18. exf4 {[%clk 0:01:34]}  Qf6 {[%clk 0:01:47]} 19. Qe4 {[%clk 0:01:28]}  Qxf4 {[%clk 0:01:39]} 20. Qxe6+ {[%clk 0:01:28]}  Rf7 {[%clk 0:01:33]} 21. Nd5 {[%clk 0:00:47]}  Qxh2 {[%clk 0:00:36]} 22. Ne7+ {[%clk 0:00:47]}  Kh8 {[%clk 0:00:35]} 23. Ng6+ {[%clk 0:00:48]}  Kg8 {[%clk 0:00:35]} 24. Ne7+ {[%clk 0:00:49]}  Kh8 {[%clk 0:00:31]} 25. Ng6+ {[%clk 0:00:50]}  Kg8 {[%clk 0:00:31]} 26. Ne7+ {[%clk 0:00:51]} 1/2-1/2


[Site "https://www.chess.com"]

[Event "Titled Tuesday Blitz July 4 Early 2023"]
[White "Erdogmus, Yagiz Kaan"]
[Black "Przybylski, Wojciech"]
[WhiteFideId "44599790"]
[BlackFideId "1117599"]
[WhiteElo "2900"]
[BlackElo "2572"]
[Result "1-0"]
[Round "2"]
[TimeControl "180+2"]
[Date "2023.07.04"]
[WhiteClock "0:00:28"]
[BlackClock "0:00:00"]
[Board "33"]

1. e4 {[%clk 0:02:57]}  e5 {[%clk 0:02:58]} 2. Nf3 {[%clk 0:02:57]}  Nc6 {[%clk 0:02:59]} 3. Bc4 {[%clk 0:02:56]}  Nf6 {[%clk 0:02:59]} 4. Ng5 {[%clk 0:02:56]}  d5 {[%clk 0:02:59]} 5. exd5 {[%clk 0:02:56]}  Na5 {[%clk 0:03:00]} 6. Bb5+ {[%clk 0:02:57]}  c6 {[%clk 0:03:00]} 7. dxc6 {[%clk 0:02:57]}  bxc6 {[%clk 0:03:01]} 8. Bd3 {[%clk 0:02:58]}  Bd6 {[%clk 0:03:00]} 9. O-O {[%clk 0:02:54]}  O-O {[%clk 0:02:57]} 10. Nc3 {[%clk 0:02:52]}  Bc7 {[%clk 0:02:52]} 11. b4 {[%clk 0:02:36]}  Nb7 {[%clk 0:02:51]} 12. Qf3 {[%clk 0:02:21]}  h6 {[%clk 0:02:50]} 13. Nge4 {[%clk 0:02:19]}  Nxe4 {[%clk 0:02:46]} 14. Qxe4 {[%clk 0:02:20]}  f5 {[%clk 0:02:44]} 15. Qxc6 {[%clk 0:02:12]}  Rf6 {[%clk 0:02:33]} 16. Qd5+ {[%clk 0:02:09]}  Kh7 {[%clk 0:02:22]} 17. Qxd8 {[%clk 0:02:07]}  Bxd8 {[%clk 0:02:22]} 18. Bb2 {[%clk 0:02:00]}  e4 {[%clk 0:02:17]} 19. Be2 {[%clk 0:01:53]}  Rd6 {[%clk 0:02:03]} 20. d3 {[%clk 0:01:51]}  Bf6 {[%clk 0:01:59]} 21. Nd1 {[%clk 0:01:40]}  Be7 {[%clk 0:01:52]} 22. a3 {[%clk 0:01:32]}  a5 {[%clk 0:01:39]} 23. dxe4 {[%clk 0:01:13]}  fxe4 {[%clk 0:01:38]} 24. Nc3 {[%clk 0:00:58]}  Bf6 {[%clk 0:01:37]} 25. Rab1 {[%clk 0:00:54]}  axb4 {[%clk 0:01:29]} 26. Nxe4 {[%clk 0:00:52]}  Bxb2 {[%clk 0:00:52]} 27. Rxb2 {[%clk 0:00:44]}  bxa3 {[%clk 0:00:13]} 28. Rxb7 {[%clk 0:00:43]}  Bxb7 {[%clk 0:00:14]} 29. Nxd6 {[%clk 0:00:43]}  a2 {[%clk 0:00:14]} 30. Bd3+ {[%clk 0:00:38]}  Kg8 {[%clk 0:00:13]} 31. Bc4+ {[%clk 0:00:37]}  Kf8 {[%clk 0:00:10]} 32. Bxa2 {[%clk 0:00:37]}  Bc6 {[%clk 0:00:09]} 33. Bb3 {[%clk 0:00:33]}  Rd8 {[%clk 0:00:09]} 34. Nc4 {[%clk 0:00:33]}  Bb5 {[%clk 0:00:09]} 35. Re1 {[%clk 0:00:32]}  Rd4 {[%clk 0:00:08]} 36. Ne5 {[%clk 0:00:31]}  g5 {[%clk 0:00:08]} 37. f3 {[%clk 0:00:29]}  Kg7 {[%clk 0:00:08]} 38. c4 {[%clk 0:00:27]}  Ba6 {[%clk 0:00:07]} 39. Rd1 {[%clk 0:00:27]}  Rxd1+ {[%clk 0:00:03]} 40. Bxd1 {[%clk 0:00:28]}  Kf6 {[%clk 0:00:00]} 41. Ng4+ {[%clk 0:00:28]} 1-0


[Site "https://www.chess.com"]

[Event "Titled Tuesday Blitz July 4 Early 2023"]
[White "Solovchuk, Oleksiy"]
[Black "Nguyen, Ngoc Truong Son"]
[WhiteFideId "14115220"]
[BlackFideId "12401110"]
[WhiteElo "2569"]
[BlackElo "2898"]
[Result "0-1"]
[Round "2"]
[TimeControl "180+2"]
[Date "2023.07.04"]
[WhiteClock "0:00:17"]
[BlackClock "0:00:05"]
[Board "34"]

1. d4 {[%clk 0:03:00]}  d6 {[%clk 0:02:56]} 2. e4 {[%clk 0:02:59]}  Nf6 {[%clk 0:02:54]} 3. f3 {[%clk 0:02:54]}  c5 {[%clk 0:02:46]} 4. dxc5 {[%clk 0:02:46]}  Qa5+ {[%clk 0:02:45]} 5. Nd2 {[%clk 0:02:27]}  Qxc5 {[%clk 0:02:44]} 6. Nb3 {[%clk 0:02:27]}  Qc7 {[%clk 0:02:43]} 7. Ne2 {[%clk 0:02:26]}  Nc6 {[%clk 0:02:42]} 8. Nc3 {[%clk 0:02:26]}  e6 {[%clk 0:02:23]} 9. Bf4 {[%clk 0:02:23]}  a6 {[%clk 0:02:23]} 10. Qd2 {[%clk 0:02:21]}  Be7 {[%clk 0:02:03]} 11. O-O-O {[%clk 0:02:18]}  e5 {[%clk 0:02:03]} 12. Bg5 {[%clk 0:02:17]}  Be6 {[%clk 0:02:02]} 13. Bxf6 {[%clk 0:02:13]}  gxf6 {[%clk 0:02:01]} 14. Nd5 {[%clk 0:02:14]}  Bxd5 {[%clk 0:01:40]} 15. exd5 {[%clk 0:02:13]}  Na7 {[%clk 0:01:28]} 16. Bd3 {[%clk 0:02:10]}  O-O-O {[%clk 0:01:26]} 17. Kb1 {[%clk 0:02:01]}  h5 {[%clk 0:01:24]} 18. h4 {[%clk 0:01:59]}  Kb8 {[%clk 0:01:24]} 19. Bf5 {[%clk 0:01:42]}  Nc8 {[%clk 0:01:23]} 20. g4 {[%clk 0:01:37]}  Bf8 {[%clk 0:01:20]} 21. Qb4 {[%clk 0:01:32]}  Ne7 {[%clk 0:01:04]} 22. Be4 {[%clk 0:01:18]}  Bh6 {[%clk 0:01:03]} 23. Rd3 {[%clk 0:01:11]}  Ka7 {[%clk 0:00:57]} 24. Na5 {[%clk 0:01:01]}  Rd7 {[%clk 0:00:48]} 25. Rb3 {[%clk 0:00:45]}  Rc8 {[%clk 0:00:26]} 26. a3 {[%clk 0:00:41]}  Qc5 {[%clk 0:00:20]} 27. Ka2 {[%clk 0:00:31]}  Qxb4 {[%clk 0:00:19]} 28. axb4 {[%clk 0:00:32]}  Rdc7 {[%clk 0:00:18]} 29. c3 {[%clk 0:00:30]}  Be3 {[%clk 0:00:16]} 30. Ra3 {[%clk 0:00:29]}  Rg8 {[%clk 0:00:14]} 31. Re1 {[%clk 0:00:26]}  Bb6 {[%clk 0:00:13]} 32. gxh5 {[%clk 0:00:22]}  f5 {[%clk 0:00:12]} 33. Bd3 {[%clk 0:00:21]}  Rh8 {[%clk 0:00:12]} 34. Nc4 {[%clk 0:00:20]}  Rh6 {[%clk 0:00:11]} 35. b5 {[%clk 0:00:19]}  Nxd5 {[%clk 0:00:10]} 36. bxa6 {[%clk 0:00:19]}  Nf4 {[%clk 0:00:10]} 37. Bf1 {[%clk 0:00:19]}  Bc5 {[%clk 0:00:09]} 38. b4 {[%clk 0:00:17]}  Bf2 {[%clk 0:00:09]} 39. Rd1 {[%clk 0:00:17]}  b6 {[%clk 0:00:08]} 40. Rxd6 {[%clk 0:00:16]}  Rxh5 {[%clk 0:00:05]} 41. Rf6 {[%clk 0:00:15]}  Rxh4 {[%clk 0:00:05]} 42. Nd6 {[%clk 0:00:16]}  Ka8 {[%clk 0:00:05]} 43. Nb5 {[%clk 0:00:15]}  Rd7 {[%clk 0:00:03]} 44. Rc6 {[%clk 0:00:15]}  Rh8 {[%clk 0:00:03]} 45. Nc7+ {[%clk 0:00:15]}  Ka7 {[%clk 0:00:03]} 46. Nb5+ {[%clk 0:00:15]}  Ka8 {[%clk 0:00:04]} 47. Rxb6 {[%clk 0:00:16]}  Bxb6 {[%clk 0:00:03]} 48. Bc4 {[%clk 0:00:17]}  Ne6 {[%clk 0:00:03]} 49. Bxe6 {[%clk 0:00:17]}  fxe6 {[%clk 0:00:03]} 50. Kb3 {[%clk 0:00:18]}  e4 {[%clk 0:00:04]} 51. c4 {[%clk 0:00:18]}  exf3 {[%clk 0:00:04]} 52. c5 {[%clk 0:00:19]}  f2 {[%clk 0:00:04]} 53. Ra1 {[%clk 0:00:20]}  Bxc5 {[%clk 0:00:04]} 54. bxc5 {[%clk 0:00:21]}  Rb8 {[%clk 0:00:03]} 55. Kc4 {[%clk 0:00:21]}  e5 {[%clk 0:00:02]} 56. Rf1 {[%clk 0:00:21]}  Rd2 {[%clk 0:00:02]} 57. c6 {[%clk 0:00:21]}  Rc2+ {[%clk 0:00:03]} 58. Kd3 {[%clk 0:00:20]}  Rxc6 {[%clk 0:00:03]} 59. Rxf2 {[%clk 0:00:19]}  Rxb5 {[%clk 0:00:03]} 60. Rxf5 {[%clk 0:00:20]}  e4+ {[%clk 0:00:04]} 61. Kxe4 {[%clk 0:00:17]}  Rxf5 {[%clk 0:00:05]} 0-1


[Site "https://www.chess.com"]